bitfinex-derivatives/quotes_BTCF0:USTF0_20251219
["timestamp","ask_amount","ask_price","bid_price","bid_amount"]
[1766145851680,0.00364,88173.0,88154.0,0.0113499]
[1766145851897,0.011348,88170.0,88151.0,0.0113503]
[1766145852192,0.0113479,88171.0,88150.0,0.52094984]
[1766145852380,0.0113481,88169.0,88150.0,0.52094984]
[1766145852584,0.00025946,88168.0,88151.0,0.00017018]
[1766145853198,0.00025946,88168.0,88155.0,0.0113498]
[1766145853396,0.00201946,88168.0,88155.0,0.0113498]
[1766145854482,0.0113452,88192.0,88151.0,0.00017018]
[1766145854691,2.38336,88200.0,88170.0,0.50959944]
[1766145854897,2.38336,88200.0,88154.0,0.0113498]
[1766145854898,0.0113462,88184.0,88165.0,0.0113485]
[1766145855100,0.00288,88183.0,88167.0,0.0113482]
[1766145855292,0.0113464,88182.0,88164.0,0.0113486]
[1766145855598,8.216e-05,88181.0,88164.0,0.01151878]
[1766145856096,8.216e-05,88181.0,88164.0,0.00017018]
[1766145856500,2.16e-06,88181.0,88170.0,0.50959944]
[1766145856895,2.16e-06,88181.0,88173.0,0.0113474]
[1766145857293,2.34e-06,88182.0,88173.0,0.0113474]
[1766145857496,2.34e-06,88182.0,88171.0,0.0113478]
[1766145857695,2.34e-06,88182.0,88173.0,0.0113474]
[1766145858696,2.34e-06,88182.0,88170.0,0.50959944]
[1766145859097,2.34e-06,88182.0,88175.0,0.0113472]
[1766145859701,2.34e-06,88182.0,88170.0,0.50959944]
[1766145860298,2.34e-06,88182.0,88180.0,0.0113466]
[1766145860597,2.34e-06,88182.0,88171.0,0.0113478]
[1766145860598,0.00024,88199.0,88177.0,0.00572]
[1766145860804,0.00024,88199.0,88184.0,0.011346]
[1766145861506,0.00024,88199.0,88186.0,0.0113458]
[1766145862800,1.8e-07,88200.0,88189.0,0.50959944]
[1766145863110,1.8e-07,88200.0,88190.0,0.50959944]
[1766145863302,1.8e-07,88200.0,88187.0,0.0113457]
[1766145863502,1.8e-07,88200.0,88189.0,0.0113454]
[1766145863703,1.8e-07,88200.0,88190.0,0.50959944]
[1766145863911,1.8e-07,88200.0,88189.0,0.0113454]
[1766145865312,1.8e-07,88200.0,88186.0,0.0113458]
[1766145865519,0.0113443,88199.0,88184.0,0.00572]
[1766145866017,0.0113495,88158.0,88137.0,0.0113521]
[1766145866207,0.0113495,88158.0,88121.0,0.0113541]
[1766145866208,0.0113504,88151.0,88113.0,2.44386625]
[1766145866407,0.0113502,88152.0,88132.0,0.0113527]
[1766145866617,0.0113506,88150.0,88132.0,0.0170727]
[1766145866908,0.01152078,88150.0,88132.0,0.01724288]
[1766145867305,0.00017018,88150.0,88132.0,0.01724288]
[1766145867504,0.01152068,88150.0,88132.0,0.00589018]
[1766145867814,0.00017018,88150.0,88136.0,0.0113522]
[1766145872515,0.00017018,88150.0,88133.0,0.0113527]
[1766145873118,0.00017018,88150.0,88136.0,0.0113522]
[1766145875519,0.00017018,88150.0,88133.0,0.0113526]
[1766145876813,0.00017018,88150.0,88135.0,0.0113523]
[1766145877818,0.1000144,88184.0,88140.0,0.50959944]
[1766145878016,0.0113489,88163.0,88145.0,0.011351]
[1766145878520,0.0113489,88163.0,88141.0,0.00572]
[1766145878521,0.0113493,88160.0,88141.0,0.00572]
[1766145878708,0.0113489,88163.0,88141.0,0.00572]
[1766145878915,0.00017018,88161.0,88143.0,0.00017018]
[1766145879110,0.50959944,88160.0,88143.0,8e-08]
[1766145879318,0.0113511,88146.0,88143.0,8e-08]
[1766145879519,0.0113514,88144.0,88130.0,0.0008]
[1766145879828,0.0113528,88133.0,88115.0,0.00572]
[1766145880024,0.50959944,88130.0,88082.0,0.0113592]
[1766145880321,0.50959944,88130.0,88095.0,2.38388]
[1766145880536,0.50959944,88120.0,88105.0,0.00017018]
[1766145880718,0.0170746,88119.0,88105.0,0.00017018]
[1766145880908,0.00572,88119.0,88105.0,0.00017018]
[1766145881218,0.0113551,88115.0,88105.0,0.00017018]
[1766145882218,0.0113551,88115.0,88105.0,1.8e-07]
[1766145882917,0.00010775,88118.0,88098.0,1e-08]
[1766145883120,0.0113559,88108.0,88098.0,1e-08]
[1766145883324,0.0113562,88106.0,88098.0,1e-08]
[1766145883525,0.00572,88107.0,88031.0,0.0113658]
[1766145883730,0.0113597,88079.0,88036.0,0.0004]
[1766145884026,0.00096,88078.0,88032.0,0.0113657]
[1766145884324,0.00017028,88066.0,88049.0,0.00017028]
[1766145884516,0.00572,88065.0,88049.0,0.00017028]
[1766145884716,9.138e-05,88064.0,88049.0,0.00017028]
[1766145885621,0.0113587,88087.0,88050.0,0.50959944]
[1766145885918,0.0004,88086.0,88060.0,0.50959944]
[1766145886326,0.00012,88085.0,88061.0,0.00572]
[1766145886715,0.00017028,88082.0,88064.0,0.00017028]
[1766145887526,0.0113567,88102.0,88070.0,0.50959944]
[1766145887723,0.03187388,88101.0,88070.0,0.50959944]
[1766145887926,0.03391388,88100.0,88070.0,0.50959944]
[1766145888122,0.02819388,88099.0,88070.0,0.50959944]
[1766145888327,0.03391388,88098.0,88061.0,0.00572]
[1766145888623,0.0113567,88102.0,88071.0,0.00017028]
[1766145888624,0.00017028,88088.0,88071.0,0.00017028]
[1766145889128,5.51e-05,88097.0,88078.0,0.50959944]
[1766145889525,0.0113558,88109.0,88079.0,0.00572]
[1766145889718,0.00368,88108.0,88079.0,0.00572]
[1766145889916,0.0567564,88145.0,88098.0,0.50959944]
[1766145890125,0.0113545,88119.0,88113.0,8e-08]
[1766145890427,0.00564,88120.0,88113.0,8e-08]
[1766145890818,0.0113537,88126.0,88113.0,8e-08]
[1766145891020,0.00572,88125.0,88113.0,8e-08]
[1766145891429,0.0113546,88119.0,88113.0,8e-08]
[1766145891619,0.0113552,88114.0,88082.0,2.38516]
[1766145891825,0.0113552,88114.0,88090.0,0.50959944]
[1766145892129,0.0113552,88114.0,88091.0,0.00572]
[1766145892527,0.00017028,88111.0,88094.0,0.00017028]
[1766145892922,0.00272,88116.0,88100.0,0.50959944]
[1766145893322,0.00272,88116.0,88094.0,0.00017028]
[1766145893517,0.00272,88116.0,88100.0,0.50959944]
[1766145893725,0.00272,88116.0,88098.0,0.00572]
[1766145893924,0.00289028,88116.0,88098.0,0.00572]
[1766145894324,0.01424518,88116.0,88098.0,0.00572]
[1766145894520,0.0113564,88105.0,88094.0,8e-08]
[1766145894726,0.0113557,88110.0,88094.0,8e-08]
[1766145895634,0.00289028,88116.0,88094.0,8e-08]
[1766145896136,0.01424528,88116.0,88100.0,0.50959944]
[1766145896333,0.00017028,88116.0,88100.0,0.50959944]
[1766145897527,0.00017028,88116.0,88100.0,0.74874152]
[1766145897734,0.00017028,88116.0,88098.0,0.00572]
[1766145897932,0.00017028,88116.0,88100.0,0.74874152]
[1766145898237,0.00017028,88116.0,88098.0,0.00572]
[1766145898439,0.0113551,88115.0,88098.0,0.00572]
[1766145900029,0.011356,88108.0,88094.0,8e-08]
[1766145900326,0.0113564,88105.0,88094.0,8e-08]
[1766145901436,0.00017028,88116.0,88094.0,8e-08]
[1766145901743,0.00017028,88116.0,88100.0,0.74874152]
[1766145901939,0.00017028,88116.0,88101.0,0.00572]
[1766145902643,0.5,88115.0,88101.0,0.00572]
[1766145903239,0.48,88115.0,88101.0,0.00572]
[1766145903435,0.0113536,88126.0,88106.0,0.011356]
[1766145903634,0.00552,88131.0,88104.0,2.38528]
[1766145903834,0.02830859,88130.0,88104.0,2.38528]
[1766145904034,0.01934128,88138.0,88115.0,0.011355]
[1766145904236,0.0113527,88133.0,88115.0,0.00572]
[1766145904429,0.02830546,88132.0,88115.0,0.00589028]
[1766145904841,0.00017028,88133.0,88116.0,0.0113548]
[1766145905043,0.00017028,88133.0,88121.0,0.0113541]
[1766145905236,0.00017028,88133.0,88117.0,0.0113546]
[1766145905938,0.00017028,88133.0,88115.0,0.00589028]
[1766145906144,0.00017028,88133.0,88120.0,0.0113543]
[1766145906340,0.00017028,88133.0,88116.0,0.0113548]
[1766145906641,0.0113529,88132.0,88115.0,0.00589028]
[1766145906941,0.0113532,88129.0,88116.0,0.00464]
[1766145907144,0.01152308,88133.0,88116.0,0.00464]
[1766145907342,0.02833333,88132.0,88116.0,0.00464]
[1766145907545,0.01152308,88133.0,88116.0,0.00464]
[1766145907728,0.02834202,88132.0,88117.0,0.0113547]
[1766145907934,0.00017028,88133.0,88119.0,0.0113544]
[1766145908134,0.02834201,88132.0,88116.0,0.0159948]
[1766145908339,0.02835894,88131.0,88118.0,0.0113545]
[1766145908642,0.02835894,88131.0,88116.0,0.00464]
[1766145908643,0.0113509,88147.0,88120.0,0.74857157]
[1766145908939,0.03970821,88146.0,88126.0,0.0113535]
[1766145909145,0.02835721,88145.0,88128.0,0.0113533]
[1766145909335,0.02835721,88144.0,88129.0,0.00572]
[1766145909536,0.02835721,88143.0,88129.0,0.00572]
[1766145909840,0.06084898,88161.0,88129.0,0.00572]
[1766145909841,0.00572,88153.0,88138.0,0.011352]
[1766145910041,0.00572,88156.0,88137.0,0.00572]
[1766145910433,0.0113503,88152.0,88137.0,0.00572]
[1766145910638,0.00572,88156.0,88137.0,0.00572]
[1766145910844,0.0113508,88148.0,88132.0,0.00572]
[1766145911242,0.0113503,88152.0,88136.0,0.0113522]
[1766145911546,0.0113503,88152.0,88133.0,0.0113526]
[1766145912249,0.0113508,88148.0,88132.0,0.00572]
[1766145912446,0.0113506,88150.0,88133.0,0.0113527]
[1766145913440,0.0113502,88153.0,88135.0,0.0113523]
[1766145913639,0.00572,88156.0,88138.0,0.011352]
[1766145913846,0.00572,88156.0,88140.0,0.0113517]
[1766145914045,0.00456,88155.0,88140.0,0.0113517]
[1766145914242,0.01135,88154.0,88137.0,0.0113521]
[1766145914740,0.0113503,88152.0,88134.0,0.0113525]
[1766145915135,0.0113503,88152.0,88136.0,0.0113522]
[1766145916040,0.0113503,88152.0,88133.0,0.0113526]
[1766145916353,0.00456,88155.0,88128.0,0.00017018]
[1766145916551,0.0113511,88146.0,88129.0,0.0113531]
[1766145917252,0.0113513,88144.0,88129.0,0.0113531]
[1766145917644,0.00572,88145.0,88128.0,0.00017018]
[1766145917842,0.00572,88145.0,88131.0,0.0113529]
[1766145918444,0.0170712,88145.0,88128.0,0.01152348]
[1766145918647,0.00572,88145.0,88130.0,0.011353]
[1766145918843,0.00572,88145.0,88128.0,0.00017018]
[1766145919149,0.0113511,88146.0,88130.0,0.011353]
[1766145919553,0.0113509,88147.0,88129.0,0.0113532]
[1766145919755,0.0113509,88147.0,88128.0,0.00017018]
[1766145920144,0.0113509,88147.0,88131.0,1.0]
[1766145920352,0.0113512,88145.0,88131.0,1.0]
[1766145921349,0.011352,88139.0,88113.0,0.0113551]
[1766145921545,0.011353,88131.0,88115.0,0.0113549]
[1766145921748,0.011353,88131.0,88112.0,0.0113553]
[1766145922053,0.0113534,88128.0,88112.0,0.0113553]
[1766145922247,0.00572,88138.0,88112.0,0.0113553]
[1766145922446,0.00017018,88129.0,88114.0,0.0113551]
[1766145922641,0.00017018,88129.0,88114.0,0.011355]
[1766145922843,0.00017018,88129.0,88111.0,0.00017018]
[1766145923257,0.00017018,88129.0,88117.0,0.0113547]
[1766145923554,8e-08,88129.0,88126.0,0.0113535]
[1766145925456,0.06084898,88161.0,88111.0,0.00017018]
[1766145925658,0.74857157,88140.0,88090.0,0.74857157]
[1766145925862,0.011354,88123.0,88106.0,0.0113561]
[1766145926159,0.0113551,88115.0,88100.0,0.00572]
[1766145926463,0.00572,88126.0,88100.0,0.00572]
[1766145926657,0.02646572,88125.0,88100.0,0.00572]
[1766145926961,0.02646572,88124.0,88100.0,0.00572]
[1766145927163,0.0113551,88114.0,88100.0,0.00572]
[1766145927459,0.00572,88116.0,88100.0,0.00572]
[1766145927658,0.0113558,88109.0,88099.0,0.00017018]
[1766145927848,0.0113562,88106.0,88098.0,2.1e-07]
[1766145928054,0.0113567,88102.0,88098.0,2.1e-07]
[1766145928259,0.0113567,88102.0,88081.0,2.38472]
[1766145928563,0.0113571,88099.0,88079.0,0.0170796]
[1766145928948,0.00017028,88098.0,88081.0,0.0113594]
[1766145929152,0.00017028,88098.0,88080.0,0.00017028]
[1766145929362,0.00017028,88098.0,88084.0,0.0113589]
[1766145929764,0.00017028,88098.0,88083.0,0.011359]
[1766145930461,0.00268,88111.0,88080.0,0.74874185]
[1766145930965,0.06084898,88131.0,88090.0,0.74857157]
[1766145931158,0.0113539,88124.0,88091.0,0.00572]
[1766145931360,0.02998962,88123.0,88106.0,0.0113561]
[1766145931555,0.02630962,88122.0,88106.0,0.0113561]
[1766145931760,0.0260599,88121.0,88101.0,0.00572]
[1766145932068,0.00572,88122.0,88110.0,0.0113556]
[1766145933372,0.0113522,88137.0,88116.0,0.0113548]
[1766145933574,0.00456,88130.0,88073.0,0.08138445]
[1766145933773,0.0113543,88121.0,88088.0,2.4021185]
[1766145933971,0.00368,88120.0,88081.0,0.0113594]
[1766145934269,0.0113555,88111.0,88094.0,0.0113577]
[1766145934470,0.0113555,88111.0,88095.0,0.00572]
[1766145934671,0.0113552,88114.0,88096.0,0.0113574]
[1766145934877,0.00017028,88112.0,88096.0,0.0113574]
[1766145935078,0.0113581,88091.0,88053.0,0.0113629]
[1766145935379,0.0113586,88087.0,88068.0,0.0113609]
[1766145935577,0.0113586,88087.0,88064.0,0.0132015]
[1766145936076,0.0113586,88087.0,88072.0,0.00017028]
[1766145936377,0.00017028,88089.0,88072.0,0.00017028]
[1766145937068,0.00017028,88089.0,88081.0,0.0113593]
[1766145937268,8e-08,88089.0,88072.0,0.00017028]
[1766145937472,8e-08,88089.0,88078.0,0.0113597]
[1766145937785,8e-08,88089.0,88074.0,0.01144104]
[1766145937983,8e-08,88089.0,88078.0,0.0113598]
[1766145938283,8e-08,88089.0,88084.0,0.0113589]
[1766145938882,8e-08,88089.0,88087.0,0.0113585]
[1766145939070,0.00136,88104.0,88088.0,0.0113584]
[1766145939276,0.00244,88106.0,88088.0,0.0113584]
[1766145939473,0.0113557,88110.0,88088.0,0.0113584]
[1766145939676,0.00226918,88138.0,88083.0,0.00572]
[1766145939876,0.0113545,88119.0,88098.0,0.0113571]
[1766145940183,0.011355,88115.0,88100.0,0.00017028]
[1766145940480,0.00372,88114.0,88100.0,0.00017028]
[1766145940984,0.0113553,88113.0,88100.0,0.00017028]
[1766145941782,0.0113558,88109.0,88087.0,0.0113585]
[1766145941982,0.00372,88114.0,88077.0,0.0113598]
[1766145942284,0.74857157,88110.0,88078.0,0.00044]
[1766145942485,0.0113569,88101.0,88079.0,0.0113596]
[1766145942685,0.01152748,88099.0,88081.0,0.00017028]
[1766145943584,0.01152748,88099.0,88081.0,0.01152958]
[1766145943787,0.00017028,88099.0,88081.0,0.01152958]
[1766145944485,0.0113572,88098.0,88081.0,0.00017028]
[1766145945191,0.01152748,88099.0,88081.0,0.00017028]
[1766145945375,0.01152748,88099.0,88081.0,0.01152958]
[1766145945579,0.00017028,88099.0,88081.0,0.00017028]
[1766145945788,0.00017028,88099.0,88085.0,0.0113588]
[1766145945990,0.00017028,88099.0,88081.0,0.00017028]
[1766145946186,0.00017028,88099.0,88082.0,0.0113592]
[1766145946491,0.00017028,88099.0,88085.0,0.0113589]
[1766145947388,0.0113576,88095.0,88081.0,0.00017028]
[1766145947692,0.0113575,88096.0,88081.0,0.00017028]
[1766145948597,0.00017028,88099.0,88081.0,0.00017028]
[1766145948893,2.8e-07,88099.0,88081.0,0.01152958]
[1766145949077,2.8e-07,88099.0,88082.0,0.00572]
[1766145949281,2.8e-07,88099.0,88090.0,0.0113581]
[1766145949586,2.8e-07,88099.0,88082.0,0.00572]
[1766145949781,2.8e-07,88099.0,88097.0,0.0113572]
[1766145949976,0.06102178,88135.0,88084.0,0.0113589]
[1766145949977,0.0113541,88122.0,88103.0,0.0113565]
[1766145950187,0.02521155,88121.0,88108.0,0.0113559]
[1766145950394,0.00296,88122.0,88108.0,0.0113559]
[1766145950583,0.02522126,88121.0,88108.0,0.0113559]
[1766145950783,0.00296,88122.0,88108.0,0.0113559]
[1766145950986,0.02522123,88121.0,88106.0,0.00017028]
[1766145951285,0.00296,88122.0,88106.0,0.00017028]
[1766145951877,0.00296,88122.0,88106.0,0.01152638]
[1766145952290,0.00296,88122.0,88106.0,0.00017028]
[1766145952591,0.0113545,88119.0,88106.0,2.8e-07]
[1766145952787,0.00296,88122.0,88107.0,0.011356]
[1766145952995,0.02523899,88121.0,88106.0,2.8e-07]
[1766145953191,0.0113551,88115.0,88106.0,2.8e-07]
[1766145953885,0.0113546,88119.0,88106.0,2.8e-07]
[1766145954087,0.0113548,88117.0,88106.0,2.8e-07]
[1766145954291,0.0113543,88121.0,88106.0,2.8e-07]
[1766145954590,0.0113545,88119.0,88106.0,2.8e-07]
[1766145954792,0.02525809,88118.0,88106.0,2.8e-07]
[1766145954994,0.02525809,88117.0,88106.0,2.8e-07]
[1766145955193,0.0113545,88119.0,88106.0,2.8e-07]
[1766145955394,0.0113548,88117.0,88106.0,2.8e-07]
[1766145955602,0.02527018,88116.0,88106.0,2.8e-07]
[1766145955788,0.0113548,88117.0,88106.0,2.8e-07]
[1766145955989,0.02527018,88116.0,88106.0,2.8e-07]
[1766145956196,0.0113543,88121.0,88106.0,2.8e-07]
[1766145956498,0.0113545,88119.0,88106.0,2.8e-07]
[1766145956696,0.02527269,88118.0,88106.0,2.8e-07]
[1766145956900,0.02527269,88117.0,88106.0,2.8e-07]
[1766145957095,0.02527269,88116.0,88106.0,2.8e-07]
[1766145957296,0.0113545,88119.0,88106.0,2.8e-07]
[1766145957498,0.02527399,88118.0,88106.0,2.8e-07]
[1766145957699,0.02527399,88117.0,88106.0,2.8e-07]
[1766145957903,0.02527399,88116.0,88106.0,2.8e-07]
[1766145958200,0.0113545,88119.0,88106.0,2.8e-07]
[1766145958395,0.02527287,88118.0,88106.0,2.8e-07]
[1766145958598,0.02527287,88117.0,88106.0,2.8e-07]
[1766145958796,0.02527287,88116.0,88106.0,2.8e-07]
[1766145958995,0.00017028,88124.0,88106.0,2.8e-07]
[1766145958996,0.00572,88115.0,88106.0,2.8e-07]
[1766145960096,0.00284,88118.0,88110.0,0.0113556]
[1766145960997,0.00144,88122.0,88115.0,0.0113549]
[1766145961191,0.00017028,88124.0,88112.0,0.0113553]
[1766145961399,0.00017028,88124.0,88106.0,2.8e-07]
[1766145961994,0.00017028,88124.0,88110.0,0.51064276]
[1766145962201,0.06102178,88156.0,88110.0,0.51636276]
[1766145962400,0.02525832,88137.0,88110.0,0.00572]
[1766145962592,0.0113533,88127.0,88111.0,0.0113552]
[1766145962904,0.00572,88128.0,88107.0,0.00572]
[1766145963092,0.00572,88127.0,88106.0,2.8e-07]
[1766145963292,0.00573023,88126.0,88106.0,2.8e-07]
[1766145963500,0.0113542,88122.0,88106.0,2.8e-07]
[1766145965598,0.0113545,88119.0,88106.0,2.8e-07]
[1766145966195,0.0113542,88122.0,88106.0,2.8e-07]
[1766145968611,0.00573023,88126.0,88097.0,0.00572]
[1766145968808,0.02526762,88125.0,88097.0,0.00572]
[1766145969111,0.0113543,88121.0,88105.0,0.0113562]
[1766145969313,0.02526762,88120.0,88105.0,0.0113562]
[1766145970809,0.00572,88119.0,88105.0,0.0113562]
[1766145971002,0.00572,88119.0,88107.0,0.011356]
[1766145972705,0.02526935,88118.0,88107.0,0.011356]
[1766145972905,0.00572,88119.0,88104.0,0.01152658]
[1766145973211,0.02526935,88118.0,88104.0,0.01152658]
[1766145973514,0.00572,88119.0,88106.0,0.0113561]
[1766145973715,0.00572,88119.0,88105.0,0.0113562]
[1766145974408,0.00572,88119.0,88107.0,0.011356]
[1766145975613,0.00572,88119.0,88104.0,0.01152668]
[1766145975813,0.00572,88119.0,88106.0,0.0113561]
[1766145976009,0.00572,88119.0,88107.0,0.011356]
[1766145977307,0.00572,88119.0,88105.0,0.0113562]
[1766145977611,0.0113547,88118.0,88104.0,0.00017028]
[1766145977919,0.0113551,88114.0,88104.0,2.8e-07]
[1766145978110,0.0113554,88112.0,88104.0,2.8e-07]
[1766145978309,0.0113551,88115.0,88104.0,2.8e-07]
[1766145978807,0.0113561,88107.0,88104.0,2.8e-07]
[1766145979112,0.00572,88108.0,88104.0,2.8e-07]
[1766145981013,0.017076,88108.0,88104.0,2.8e-07]
[1766145981315,0.00572,88108.0,88104.0,2.8e-07]
[1766145982311,0.0113562,88106.0,88104.0,2.8e-07]
[1766145984416,0.0113567,88103.0,88085.0,0.0113587]
[1766145984611,0.00572,88102.0,88085.0,0.0113587]
[1766145984806,0.0113569,88101.0,88085.0,0.0113587]
[1766145985213,0.0113571,88099.0,88084.0,0.00017028]
[1766145985719,0.00589028,88102.0,88084.0,0.00017028]
[1766145985917,0.00589028,88102.0,88085.0,0.0113588]
[1766145986119,0.01724698,88102.0,88084.0,0.00017028]
[1766145986617,0.011357,88100.0,88084.0,0.00017028]
[1766145988220,0.011357,88100.0,88079.0,0.002]
[1766145988420,0.02503609,88099.0,88079.0,0.002]
[1766145988616,0.011357,88100.0,88079.0,0.002]
[1766145988822,0.0113572,88098.0,88079.0,0.002]
[1766145989119,0.51074787,88100.0,88080.0,0.00017028]
[1766145989420,0.00589028,88102.0,88080.0,0.00017028]
[1766145989421,0.02503165,88099.0,88080.0,2.8e-07]
[1766145989623,0.0113584,88089.0,88080.0,2.8e-07]
[1766145989814,0.00572,88089.0,88080.0,2.8e-07]
[1766145990117,0.00572,88089.0,88068.0,0.0170811]
[1766145990325,0.00572,88089.0,88068.0,0.00572]
[1766145990923,0.00572,88089.0,88074.0,0.0113602]
[1766145991222,8.084e-05,88088.0,88073.0,0.00017028]
[1766145991723,8.084e-05,88088.0,88073.0,2.8e-07]
[1766145991916,0.0113593,88082.0,88073.0,2.8e-07]
[1766145992107,0.00572,88081.0,88061.0,0.00572]
[1766145992315,0.51646787,88080.0,88048.0,0.06115548]
[1766145992516,0.51646787,88080.0,88043.0,2.38552]
[1766145992517,0.0113604,88074.0,88047.0,0.00184]
[1766145992828,0.00552,88079.0,88048.0,0.0113636]
[1766145993014,0.0113598,88078.0,88060.0,0.011362]
[1766145993214,0.01153008,88078.0,88060.0,0.01153228]
[1766145993713,0.01153008,88078.0,88060.0,0.00017028]
[1766145993910,0.0113601,88076.0,88047.0,0.00184]
[1766145994115,0.00572,88075.0,88065.0,0.0113613]
[1766145994310,0.00572,88075.0,88060.0,0.011362]
[1766145994515,0.00572,88075.0,88061.0,0.0113619]
[1766145994821,0.00572,88075.0,88059.0,0.00011331]
[1766145995217,0.00572,88075.0,88040.0,0.51085823]
[1766145995517,8.084e-05,88074.0,88060.0,0.011362]
[1766145995718,8.084e-05,88074.0,88040.0,0.51085823]
[1766145995719,0.0113608,88070.0,88051.0,0.00572]
[1766145995917,0.01144124,88074.0,88056.0,0.0113625]
[1766145996121,8.084e-05,88074.0,88060.0,0.011362]
[1766145997011,8.084e-05,88074.0,88051.0,0.00572]
[1766145997315,8.084e-05,88074.0,88060.0,0.0113621]
[1766145997916,8.084e-05,88074.0,88051.0,0.0170832]
[1766145998223,8.084e-05,88074.0,88064.0,0.0113615]
[1766146000426,0.0018,88073.0,88064.0,0.0113615]
[1766146000620,0.0018,88073.0,88051.0,0.0170832]
[1766146000621,0.0018,88073.0,88055.0,0.0113626]
[1766146000818,0.0018,88073.0,88051.0,0.00572]
[1766146001019,0.0113606,88072.0,88051.0,0.00572]
[1766146001217,0.51074787,88070.0,88044.0,0.00184]
[1766146001520,0.0113614,88066.0,88049.0,0.0113634]
[1766146001720,0.0113613,88066.0,88047.0,0.0113636]
[1766146002728,0.0113609,88070.0,88044.0,0.00184]
[1766146003129,0.0018,88073.0,88046.0,0.0113639]
[1766146003326,0.0018,88073.0,88060.0,0.011362]
[1766146003716,8.084e-05,88074.0,88064.0,0.0113616]
[1766146003922,0.0018,88073.0,88064.0,0.0113616]
[1766146005213,4e-08,88074.0,88056.0,0.0113626]
[1766146006317,4e-08,88074.0,88067.0,0.0113611]
[1766146006518,4e-08,88074.0,88068.0,0.0113609]
[1766146006920,4e-08,88074.0,88054.0,0.00564]
[1766146007119,0.00017028,88078.0,88054.0,0.00564]
[1766146007325,0.00017028,88078.0,88067.0,0.0113611]
[1766146007628,0.00572,88077.0,88069.0,0.0113608]
[1766146008332,0.00572,88077.0,88066.0,0.0113613]
[1766146008829,0.00572,88077.0,88068.0,0.011361]
[1766146009532,0.00572,88077.0,88038.0,2.3971249]
[1766146009533,0.00572,88077.0,88058.0,0.0113623]
[1766146009723,0.00572,88077.0,88060.0,0.011362]
[1766146010229,0.00572,88077.0,88057.0,0.0113624]
[1766146010428,0.0113601,88076.0,88057.0,0.0113624]
[1766146010928,0.51074787,88070.0,88040.0,0.00011036]
[1766146011117,0.00572,88077.0,88040.0,0.00011036]
[1766146011118,0.011363,88053.0,88040.0,0.00011036]
[1766146011319,0.51074787,88050.0,88018.0,0.00227228]
[1766146011524,0.00589028,88055.0,88018.0,0.00227228]
[1766146011525,0.51074787,88040.0,88018.0,0.00227228]
[1766146011719,0.00572,88040.0,88023.0,0.0113668]
[1766146012331,0.00572,88040.0,88018.0,0.00227228]
[1766146012332,9.699e-05,88039.0,88018.0,0.00227228]
[1766146012636,9e-08,88037.0,88033.0,0.0113655]
[1766146012926,0.00096,88053.0,88039.0,0.0113648]
[1766146013523,0.00096,88053.0,88022.0,2.38644]
[1766146013524,1.5,88065.0,88043.0,0.0113643]
[1766146013723,0.00017039,88063.0,88045.0,0.00017039]
[1766146013924,0.02475698,88062.0,88045.0,0.00017039]
[1766146014233,0.00017039,88063.0,88046.0,0.0113638]
[1766146014418,0.02476026,88062.0,88046.0,0.0113638]
[1766146014621,0.00572,88061.0,88046.0,0.0113638]
[1766146015032,0.00572,88061.0,88045.0,0.00017039]
[1766146016334,0.00572,88061.0,88045.0,0.01153439]
[1766146017227,0.00572,88061.0,88045.0,0.01153429]
[1766146018227,0.02478011,88060.0,88045.0,0.01153429]
[1766146018428,0.00572,88059.0,88045.0,0.01153429]
[1766146019735,0.00572,88058.0,88045.0,0.01153429]
[1766146019936,0.00572,88058.0,88048.0,0.0113635]
[1766146020234,0.00017039,88063.0,88045.0,0.00017039]
[1766146020530,0.06102178,88098.0,88061.0,0.0113619]
[1766146020732,13.63836,88135.0,88050.0,0.76131142]
[1766146020733,0.0113581,88091.0,88050.0,0.76131142]
[1766146020932,0.03050924,88090.0,88050.0,0.76131142]
[1766146021136,0.02478924,88089.0,88072.0,0.0113605]
[1766146021329,0.03050924,88088.0,88072.0,0.0113605]
[1766146021524,0.02478924,88087.0,88071.0,0.00017039]
[1766146021833,0.02478924,88086.0,88071.0,0.00017039]
[1766146022038,0.02478924,88085.0,88071.0,0.00017039]
[1766146022333,0.02478924,88084.0,88071.0,0.00017039]
[1766146022537,0.00572,88083.0,88071.0,0.00017039]
[1766146023831,0.00572,88083.0,88071.0,3.9e-07]
[1766146024035,0.0113593,88082.0,88071.0,3.9e-07]
[1766146024739,0.0113597,88079.0,88071.0,3.9e-07]
[1766146025129,0.74994812,88081.0,88051.0,0.0113632]
[1766146025336,0.0113603,88075.0,88055.0,0.0113627]
[1766146025630,0.00572,88074.0,88055.0,0.0113627]
[1766146026140,0.00572,88074.0,88058.0,0.0113623]
[1766146026342,0.00572,88074.0,88057.0,0.00017039]
[1766146027543,0.0113604,88073.0,88057.0,0.00017039]
[1766146028042,0.00572,88074.0,88057.0,0.00017039]
[1766146028231,0.0113617,88064.0,88045.0,0.011364]
[1766146028432,0.0144417,88064.0,88045.0,0.011364]
[1766146028632,0.011362,88061.0,88042.0,0.0150044]
[1766146028835,0.0113624,88058.0,88042.0,0.0150043]
[1766146029236,0.00308,88064.0,88045.0,0.0113639]
[1766146029237,0.0113617,88063.0,88045.0,0.0113639]
[1766146029529,0.00308,88064.0,88047.0,0.0113637]
[1766146029729,0.0113618,88063.0,88044.0,0.0113641]
[1766146030544,0.00308,88064.0,88030.0,2.38656]
[1766146030733,0.00017039,88056.0,88039.0,0.0113647]
[1766146030929,0.001,88055.0,88039.0,0.0113647]
[1766146031133,0.001,88055.0,88027.0,0.00572]
[1766146031134,0.0113629,88054.0,88027.0,0.00572]
[1766146031538,0.0113629,88054.0,88038.0,0.0113648]
[1766146031840,0.0113629,88054.0,88020.0,0.74994812]
[1766146031841,0.02453805,88053.0,88012.0,2.3866]
[1766146032037,0.00017039,88056.0,88020.0,0.74994812]
[1766146032038,0.03025805,88052.0,88020.0,0.74994812]
[1766146032237,0.03590135,88051.0,88020.0,0.74994812]
[1766146032438,0.0113635,88049.0,88016.0,0.0170077]
[1766146032634,0.02453805,88048.0,88020.0,0.74994812]
[1766146032843,0.02453805,88047.0,88020.0,0.74994812]
[1766146033038,0.00572,88046.0,88021.0,0.0113671]
[1766146033239,0.00572,88046.0,88020.0,0.74994812]
[1766146033240,0.00572,88046.0,88035.0,0.0113653]
[1766146033438,0.00017039,88056.0,88037.0,0.011365]
[1766146033640,0.02625548,88055.0,88037.0,0.011365]
[1766146033946,0.03025548,88054.0,88037.0,0.011365]
[1766146034149,0.02453548,88053.0,88037.0,0.011365]
[1766146034347,0.02453548,88052.0,88037.0,0.011365]
[1766146034644,0.00572,88054.0,88037.0,0.011365]
[1766146034845,0.02453204,88053.0,88037.0,0.011365]
[1766146035047,0.02453204,88052.0,88037.0,0.011365]
[1766146035345,0.011363,88053.0,88028.0,0.00572]
[1766146035543,0.0113633,88051.0,88028.0,0.00572]